Workbook

Sheet Templ
A1: 1
B4: Список участников соревнований | I4: Название соревнований
B5: № | C5: Гимнастка | D5: Год | E5: Разряд | F5: Город | G5: Тренер | J5: 1 | K5: 2 | L5: 3 | M5: 4 | N5: Оценка | O5: Сбавка | P5: Сумма | Q5: МЕСТО | T5: 1 | U5: 2 | V5: 3 | W5: 4 | X5: 5 | Y5: Оценка | Z5: Сбавка | AA5: Сумма | AB5: МЕСТО
B6: 1 | I6: D | N6: =(SUM(J6:M6)-(MIN(J6:M6)+MAX(J6:M6)))/2 -> 0 | P6: =SUM(N6:N7)-SUM(O6:O7) -> 0 | S6: D | Y6: =(SUM(T6:W6)-(MIN(T6:W6)+MAX(T6:W6)))/2 -> 0 | AA6: =SUM(Y6:Y7)-SUM(Z6:Z7) -> 0
B7: =B6+1 -> 2 | I7: E | N7: =(SUM(J7:M7)-(MIN(J7:M7)+MAX(J7:M7)))/2 -> 0 | S7: E | Y7: =(SUM(T7:X7)-(MIN(T7:X7)+MAX(T7:X7)))/3 -> 0
C15: Сводный протокол
B19: № | C19: Команда/Гимнастка | D19: г.р. | E19: Разряд | F19: Город | G19: Тренер | J19: 1 | K19: 2 | L19: 3 | M19: 4 | N19: Оценка | O19: Сбавка | P19: Сумма | Q19: МЕСТО
B20: 1 | I20: D1 | N20: =(SUM(J20:M20)-(MIN(J20:M20)+MAX(J20:M20)))/2 -> 0 | P20: =SUM(N20:N23)-SUM(O20:O23) -> 0
I21: D2 | N21: 0
I22: A | N22: =(SUM(J22:M22)-(MIN(J22:M22)+MAX(J22:M22)))/2 -> 0
I23: E | N23: =(SUM(J23:M23)-(MIN(J23:M23)+MAX(J23:M23)))/2 -> 0
C30: Главный судья
C32: Главный секретарь

Sheet Data
C2: Вид соревнований | D2: Групповые
C3: Число участников в группе | D3: 6
C4: Число групп | D4: 3
C5: Количество видов: | D5: 2
C6: Вид оценки: | D6: 5
B8: Список участников соревнований | I8: Жеребьевка
B9: № | C9: Команда/Гимнастка | D9: г.р. | E9: Разряд | F9: Город | G9: Тренер | I9: № | J9: Команда/Гимнастка | K9: г.р. | L9: Разряд | M9: Город
B10: 1 | C10: Иваново "Кураж" | F10: Иваново | I10: =$B$17 -> 2 | J10: =$C$17 -> Рязань | K10: =$D$17 -> 0 | L10: =$E$17 -> 0 | M10: =$F$17 -> Рязань
C11: Коринь Настя | D11: 2003 | E11: 3 | G11: Кибирева Н. | I11: =$B$10 -> 1 | J11: =$C$10 -> Иваново "Кураж" | K11: =$D$10 -> 0 | L11: =$E$10 -> 0 | M11: =$F$10 -> Иваново
C12: Леньшина Катя | D12: 2003 | E12: 3 | G12: Соколова Е. | I12: =$B$24 -> 3 | J12: =$C$24 -> Ивановом"Ажур" | K12: =$D$24 -> 0 | L12: =$E$24 -> 0 | M12: =$F$24 -> Иваново
C13: Иванова Лера | D13: 2003 | E13: 3 | G13: Ибрагимова А.
C14: Плохова Катя | D14: 2004 | E14: 2.7 | F14: 3
C15: Миронова Даша | D15: 2004 | E15: 3
C16: Копнина Злата | D16: 2004 | E16: 3
B17: =B10 + 1 -> 2 | C17: Рязань | F17: Рязань
C18: Капитонова Алина | D18: 2003 | G18: Коробкова М.
C19: Аверина Валерия | D19: 2003 | G19: Травкина Е.
C20: Зонова Валерия | D20: 2003
C21: Васильева Анна | D21: 2003
C22: Капралова Алена | D22: 2003
B24: =B17 + 1 -> 3 | C24: Ивановом"Ажур" | F24: Иваново
C25: Гриднева Александра | D25: 2004 | G25: Политун М.
C26: Константинова Софи | D26: 2005 | G26: Кислякова И.
C27: Порюгина Екатерина | D27: 2004
C28: Шаталова Алена | D28: 2005
C29: Лебедева Ксюша | D29: 2005
C30: Измайлова Карина | D30: 2005

Sheet Вид 1
D1: 2 | E1: 9 | F1: 13
B9: № | C9: Команда/Гимнастка | E9: 1 | F9: 2 | G9: 3 | H9: 4 | I9: 5 | J9: Оценка | K9: Сбавка | L9: Сумма | M9: МЕСТО
B10: =Data!$B$17 -> 2 | C10: =Data!$C$17 -> Рязань | D10: D | E10: 6.3 | F10: 6.1 | G10: 6.3 | H10: 6.8 | J10: =(SUM(E10:H10)-(MIN(E10:H10)+MAX(E10:H10)))/2 -> 6.3 | L10: =SUM(J10:J11)-SUM(K10:K11) -> 13.76666667 | M10: =RANK(L10,$L$10:$L$15,0) -> 1
D11: E | E11: 7.6 | F11: 7.4 | G11: 7 | H11: 7.7 | I11: 7.4 | J11: =(SUM(E11:I11)-(MIN(E11:I11)+MAX(E11:I11)))/3 -> 7.466666667
B12: =Data!$B$10 -> 1 | C12: =Data!$C$10 -> Иваново "Кураж" | D12: D | E12: 4.7 | F12: 4.2 | G12: 4.5 | H12: 4.4 | J12: =(SUM(E12:H12)-(MIN(E12:H12)+MAX(E12:H12)))/2 -> 4.45 | L12: =SUM(J12:J13)-SUM(K12:K13) -> 10.55 | M12: =RANK(L12,$L$10:$L$15,0) -> 3
D13: E | E13: 6.9 | F13: 5.8 | G13: 6.3 | H13: 7.5 | I13: 6 | J13: =(SUM(E13:I13)-(MIN(E13:I13)+MAX(E13:I13)))/3 -> 6.4 | K13: 0.3
B14: =Data!$B$24 -> 3 | C14: =Data!$C$24 -> Ивановом"Ажур" | D14: D | E14: 2.7 | F14: 3 | G14: 3.2 | H14: 2.9 | J14: =(SUM(E14:H14)-(MIN(E14:H14)+MAX(E14:H14)))/2 -> 2.95 | L14: =SUM(J14:J15)-SUM(K14:K15) -> 10.61666667 | M14: =RANK(L14,$L$10:$L$15,0) -> 2
D15: E | E15: 7.8 | F15: 6.7 | G15: 7.7 | H15: 8 | I15: 7.5 | J15: =(SUM(E15:I15)-(MIN(E15:I15)+MAX(E15:I15)))/3 -> 7.666666667

Sheet Protocol
C1: International individual/national groups Rhythmic Gymnastic Tournament «MARINA CUP» April 17-21nd 2014
D8: 2 разряд
B9: № | C9: Команда/Гимнастка | D9: г.р. | E9: Разряд | F9: Город | G9: Тренер | H9: Вид 1 | I9: Вид 2 | J9: Сумма | K9: Место
B10: 1 | C10: =Data!$C$17 -> Рязань | H10: ='Вид 1'!$L$10 -> 13.76666667 | I10: 11.9 | J10: =SUM(H10:I10) -> 25.66666667 | K10: =RANK(J10,$J$10:$J$24,0) -> 1
C11: =IF(ISBLANK(Data!$C$18), "",Data!$C$18) -> Капитонова Алина | D11: =IF(ISBLANK(Data!$D$18), "",Data!$D$18) -> 2003 | E11: =IF(ISBLANK(Data!$E$18), "",Data!$E$18) ->  | F11: =IF(ISBLANK(Data!$F$18), "",Data!$F$18) ->  | G11: =IF(ISBLANK(Data!$G$18), "",Data!$G$18) -> Коробкова М.
C12: =IF(ISBLANK(Data!$C$19), "",Data!$C$19) -> Аверина Валерия | D12: =IF(ISBLANK(Data!$D$19), "",Data!$D$19) -> 2003 | E12: =IF(ISBLANK(Data!$E$19), "",Data!$E$19) ->  | F12: =IF(ISBLANK(Data!$F$19), "",Data!$F$19) ->  | G12: =IF(ISBLANK(Data!$G$19), "",Data!$G$19) -> Травкина Е.
C13: =IF(ISBLANK(Data!$C$20), "",Data!$C$20) -> Зонова Валерия | D13: =IF(ISBLANK(Data!$D$20), "",Data!$D$20) -> 2003 | E13: =IF(ISBLANK(Data!$E$20), "",Data!$E$20) ->  | F13: =IF(ISBLANK(Data!$F$20), "",Data!$F$20) ->  | G13: =IF(ISBLANK(Data!$G$20), "",Data!$G$20) -> 
C14: =IF(ISBLANK(Data!$C$21), "",Data!$C$21) -> Васильева Анна | D14: =IF(ISBLANK(Data!$D$21), "",Data!$D$21) -> 2003 | E14: =IF(ISBLANK(Data!$E$21), "",Data!$E$21) ->  | F14: =IF(ISBLANK(Data!$F$21), "",Data!$F$21) ->  | G14: =IF(ISBLANK(Data!$G$21), "",Data!$G$21) -> 
C15: =IF(ISBLANK(Data!$C$22), "",Data!$C$22) -> Капралова Алена | D15: =IF(ISBLANK(Data!$D$22), "",Data!$D$22) -> 2003 | E15: =IF(ISBLANK(Data!$E$22), "",Data!$E$22) ->  | F15: =IF(ISBLANK(Data!$F$22), "",Data!$F$22) ->  | G15: =IF(ISBLANK(Data!$G$22), "",Data!$G$22) -> 
C16: =IF(ISBLANK(Data!$C$23), "",Data!$C$23) ->  | D16: =IF(ISBLANK(Data!$D$23), "",Data!$D$23) ->  | E16: =IF(ISBLANK(Data!$E$23), "",Data!$E$23) ->  | F16: =IF(ISBLANK(Data!$F$23), "",Data!$F$23) ->  | G16: =IF(ISBLANK(Data!$G$23), "",Data!$G$23) -> 
B17: 2 | C17: =Data!$C$24 -> Ивановом"Ажур" | H17: ='Вид 1'!$L$14 -> 10.61666667 | I17: 10.883 | J17: =SUM(H17:I17) -> 21.49966667 | K17: =RANK(J17,$J$10:$J$24,0) -> 2
C18: =IF(ISBLANK(Data!$C$25), "",Data!$C$25) -> Гриднева Александра | D18: =IF(ISBLANK(Data!$D$25), "",Data!$D$25) -> 2004 | E18: =IF(ISBLANK(Data!$E$25), "",Data!$E$25) ->  | F18: =IF(ISBLANK(Data!$F$25), "",Data!$F$25) ->  | G18: =IF(ISBLANK(Data!$G$25), "",Data!$G$25) -> Политун М.
C19: =IF(ISBLANK(Data!$C$26), "",Data!$C$26) -> Константинова Софи | D19: =IF(ISBLANK(Data!$D$26), "",Data!$D$26) -> 2005 | E19: =IF(ISBLANK(Data!$E$26), "",Data!$E$26) ->  | F19: =IF(ISBLANK(Data!$F$26), "",Data!$F$26) ->  | G19: =IF(ISBLANK(Data!$G$26), "",Data!$G$26) -> Кислякова И.
C20: =IF(ISBLANK(Data!$C$27), "",Data!$C$27) -> Порюгина Екатерина | D20: =IF(ISBLANK(Data!$D$27), "",Data!$D$27) -> 2004 | E20: =IF(ISBLANK(Data!$E$27), "",Data!$E$27) ->  | F20: =IF(ISBLANK(Data!$F$27), "",Data!$F$27) ->  | G20: =IF(ISBLANK(Data!$G$27), "",Data!$G$27) -> 
C21: =IF(ISBLANK(Data!$C$28), "",Data!$C$28) -> Шаталова Алена | D21: =IF(ISBLANK(Data!$D$28), "",Data!$D$28) -> 2005 | E21: =IF(ISBLANK(Data!$E$28), "",Data!$E$28) ->  | F21: =IF(ISBLANK(Data!$F$28), "",Data!$F$28) ->  | G21: =IF(ISBLANK(Data!$G$28), "",Data!$G$28) -> 
C22: =IF(ISBLANK(Data!$C$29), "",Data!$C$29) -> Лебедева Ксюша | D22: =IF(ISBLANK(Data!$D$29), "",Data!$D$29) -> 2005 | E22: =IF(ISBLANK(Data!$E$29), "",Data!$E$29) ->  | F22: =IF(ISBLANK(Data!$F$29), "",Data!$F$29) ->  | G22: =IF(ISBLANK(Data!$G$29), "",Data!$G$29) -> 
C23: =IF(ISBLANK(Data!$C$30), "",Data!$C$30) -> Измайлова Карина | D23: =IF(ISBLANK(Data!$D$30), "",Data!$D$30) -> 2005 | E23: =IF(ISBLANK(Data!$E$30), "",Data!$E$30) ->  | F23: =IF(ISBLANK(Data!$F$30), "",Data!$F$30) ->  | G23: =IF(ISBLANK(Data!$G$30), "",Data!$G$30) -> 
B24: 3 | C24: =Data!$C$10 -> Иваново "Кураж" | H24: ='Вид 1'!$L$12 -> 10.55 | I24: 9.233 | J24: =SUM(H24:I24) -> 19.783 | K24: =RANK(J24,$J$10:$J$24,0) -> 3
C25: =IF(ISBLANK(Data!$C$11), "",Data!$C$11) -> Коринь Настя | D25: =IF(ISBLANK(Data!$D$11), "",Data!$D$11) -> 2003 | E25: =IF(ISBLANK(Data!$E$11), "",Data!$E$11) -> 3 | F25: =IF(ISBLANK(Data!$F$11), "",Data!$F$11) ->  | G25: =IF(ISBLANK(Data!$G$11), "",Data!$G$11) -> Кибирева Н.
C26: =IF(ISBLANK(Data!$C$12), "",Data!$C$12) -> Леньшина Катя | D26: =IF(ISBLANK(Data!$D$12), "",Data!$D$12) -> 2003 | E26: =IF(ISBLANK(Data!$E$12), "",Data!$E$12) -> 3 | F26: =IF(ISBLANK(Data!$F$12), "",Data!$F$12) ->  | G26: =IF(ISBLANK(Data!$G$12), "",Data!$G$12) -> Соколова Е.
C27: =IF(ISBLANK(Data!$C$13), "",Data!$C$13) -> Иванова Лера | D27: =IF(ISBLANK(Data!$D$13), "",Data!$D$13) -> 2003 | E27: =IF(ISBLANK(Data!$E$13), "",Data!$E$13) -> 3 | F27: =IF(ISBLANK(Data!$F$13), "",Data!$F$13) ->  | G27: =IF(ISBLANK(Data!$G$13), "",Data!$G$13) -> Ибрагимова А.
C28: =IF(ISBLANK(Data!$C$14), "",Data!$C$14) -> Плохова Катя | D28: =IF(ISBLANK(Data!$D$14), "",Data!$D$14) -> 2004 | E28: =IF(ISBLANK(Data!$E$14), "",Data!$E$14) -> 2.7 | F28: =IF(ISBLANK(Data!$F$14), "",Data!$F$14) -> 3 | G28: =IF(ISBLANK(Data!$G$14), "",Data!$G$14) -> 
C29: =IF(ISBLANK(Data!$C$15), "",Data!$C$15) -> Миронова Даша | D29: =IF(ISBLANK(Data!$D$15), "",Data!$D$15) -> 2004 | E29: =IF(ISBLANK(Data!$E$15), "",Data!$E$15) -> 3 | F29: =IF(ISBLANK(Data!$F$15), "",Data!$F$15) ->  | G29: =IF(ISBLANK(Data!$G$15), "",Data!$G$15) -> 
C30: =IF(ISBLANK(Data!$C$16), "",Data!$C$16) -> Копнина Злата | D30: =IF(ISBLANK(Data!$D$16), "",Data!$D$16) -> 2004 | E30: =IF(ISBLANK(Data!$E$16), "",Data!$E$16) -> 3 | F30: =IF(ISBLANK(Data!$F$16), "",Data!$F$16) ->  | G30: =IF(ISBLANK(Data!$G$16), "",Data!$G$16) -> 
D32: 3 разряд групповые упражнения
B33: № | C33: Команда/Гимнастка | D33: г.р. | E33: Разряд | F33: Город | G33: Тренер | H33: Вид 1 | I33: Вид 2 | J33: Сумма | K33: Место
B34: 1 | C34: =[1]Data!$C$17 -> Рязань | H34: ='[1]Вид 1'!$L$14 -> 11.467 | I34: 11.75 | J34: =SUM(H34:I34) -> 23.217 | K34: 1
C35: =IF(ISBLANK([1]Data!$C$18), "",[1]Data!$C$18) -> Телицина Варвара | D35: =IF(ISBLANK([1]Data!$D$18), "",[1]Data!$D$18) -> 2004 | E35: =IF(ISBLANK([1]Data!$E$18), "",[1]Data!$E$18) ->  | F35: =IF(ISBLANK([1]Data!$F$18), "",[1]Data!$F$18) ->  | G35: =IF(ISBLANK([1]Data!$G$18), "",[1]Data!$G$18) -> Коробкова М
C36: =IF(ISBLANK([1]Data!$C$19), "",[1]Data!$C$19) -> Стадник Полина | D36: =IF(ISBLANK([1]Data!$D$19), "",[1]Data!$D$19) -> 2004 | E36: =IF(ISBLANK([1]Data!$E$19), "",[1]Data!$E$19) ->  | F36: =IF(ISBLANK([1]Data!$F$19), "",[1]Data!$F$19) ->  | G36: =IF(ISBLANK([1]Data!$G$19), "",[1]Data!$G$19) -> Травкина Е.
C37: =IF(ISBLANK([1]Data!$C$20), "",[1]Data!$C$20) -> Гуркина Ольга | D37: =IF(ISBLANK([1]Data!$D$20), "",[1]Data!$D$20) -> 2004 | E37: =IF(ISBLANK([1]Data!$E$20), "",[1]Data!$E$20) ->  | F37: =IF(ISBLANK([1]Data!$F$20), "",[1]Data!$F$20) ->  | G37: =IF(ISBLANK([1]Data!$G$20), "",[1]Data!$G$20) -> 
C38: =IF(ISBLANK([1]Data!$C$21), "",[1]Data!$C$21) -> Доронина Елизавета | D38: =IF(ISBLANK([1]Data!$D$21), "",[1]Data!$D$21) -> 2005 | E38: =IF(ISBLANK([1]Data!$E$21), "",[1]Data!$E$21) ->  | F38: =IF(ISBLANK([1]Data!$F$21), "",[1]Data!$F$21) ->  | G38: =IF(ISBLANK([1]Data!$G$21), "",[1]Data!$G$21) -> 
C39: =IF(ISBLANK([1]Data!$C$22), "",[1]Data!$C$22) -> Манохина Юлия | D39: =IF(ISBLANK([1]Data!$D$22), "",[1]Data!$D$22) -> 2005 | E39: =IF(ISBLANK([1]Data!$E$22), "",[1]Data!$E$22) ->  | F39: =IF(ISBLANK([1]Data!$F$22), "",[1]Data!$F$22) ->  | G39: =IF(ISBLANK([1]Data!$G$22), "",[1]Data!$G$22) -> 
B40: 2 | C40: =[1]Data!$C$24 -> Москва | H40: ='[1]Вид 1'!$L$12 -> 10.95 | I40: 10.867 | J40: =SUM(H40:I40) -> 21.817 | K40: 2
C41: =IF(ISBLANK([1]Data!$C$25), "",[1]Data!$C$25) -> Маслова Анна | D41: =IF(ISBLANK([1]Data!$D$25), "",[1]Data!$D$25) -> 2005 | E41: =IF(ISBLANK([1]Data!$E$25), "",[1]Data!$E$25) -> 1 юн. | F41: =IF(ISBLANK([1]Data!$F$25), "",[1]Data!$F$25) ->  | G41: =IF(ISBLANK([1]Data!$G$25), "",[1]Data!$G$25) -> Сесина В,
C42: =IF(ISBLANK([1]Data!$C$26), "",[1]Data!$C$26) -> Зарубина Кристина | D42: =IF(ISBLANK([1]Data!$D$26), "",[1]Data!$D$26) -> 2004 | E42: =IF(ISBLANK([1]Data!$E$26), "",[1]Data!$E$26) -> 1 юн. | F42: =IF(ISBLANK([1]Data!$F$26), "",[1]Data!$F$26) ->  | G42: =IF(ISBLANK([1]Data!$G$26), "",[1]Data!$G$26) -> Мишенина А.
C43: =IF(ISBLANK([1]Data!$C$27), "",[1]Data!$C$27) -> Галицкая Виктория | D43: =IF(ISBLANK([1]Data!$D$27), "",[1]Data!$D$27) -> 2004 | E43: =IF(ISBLANK([1]Data!$E$27), "",[1]Data!$E$27) -> 1 юн. | F43: =IF(ISBLANK([1]Data!$F$27), "",[1]Data!$F$27) ->  | G43: =IF(ISBLANK([1]Data!$G$27), "",[1]Data!$G$27) -> Каюмова К.
C44: =IF(ISBLANK([1]Data!$C$28), "",[1]Data!$C$28) -> Чернявская Полина | D44: =IF(ISBLANK([1]Data!$D$28), "",[1]Data!$D$28) -> 2004 | E44: =IF(ISBLANK([1]Data!$E$28), "",[1]Data!$E$28) -> 1 юн. | F44: =IF(ISBLANK([1]Data!$F$28), "",[1]Data!$F$28) ->  | G44: =IF(ISBLANK([1]Data!$G$28), "",[1]Data!$G$28) -> 
C45: =IF(ISBLANK([1]Data!$C$29), "",[1]Data!$C$29) -> Сопова Дарья | D45: =IF(ISBLANK([1]Data!$D$29), "",[1]Data!$D$29) -> 2004 | E45: =IF(ISBLANK([1]Data!$E$29), "",[1]Data!$E$29) -> 1 юн. | F45: =IF(ISBLANK([1]Data!$F$29), "",[1]Data!$F$29) ->  | G45: =IF(ISBLANK([1]Data!$G$29), "",[1]Data!$G$29) -> 
C46: =IF(ISBLANK([1]Data!$C$30), "",[1]Data!$C$30) -> Цветкова Юлия | D46: =IF(ISBLANK([1]Data!$D$30), "",[1]Data!$D$30) -> 2004 | E46: =IF(ISBLANK([1]Data!$E$30), "",[1]Data!$E$30) -> 1юн. | F46: =IF(ISBLANK([1]Data!$F$30), "",[1]Data!$F$30) ->  | G46: =IF(ISBLANK([1]Data!$G$30), "",[1]Data!$G$30) -> 
B47: 3 | C47: =[1]Data!$C$10 -> Иваново "Ника" | H47: ='[1]Вид 1'!$L$10 -> 11.3 | I47: 9.817 | J47: =SUM(H47:I47) -> 21.117 | K47: 3
C48: =IF(ISBLANK([1]Data!$C$11), "",[1]Data!$C$11) -> Ковальская Кристина | D48: =IF(ISBLANK([1]Data!$D$11), "",[1]Data!$D$11) -> 2006 | E48: =IF(ISBLANK([1]Data!$E$11), "",[1]Data!$E$11) ->  | F48: =IF(ISBLANK([1]Data!$F$11), "",[1]Data!$F$11) ->  | G48: =IF(ISBLANK([1]Data!$G$11), "",[1]Data!$G$11) -> Соколова Е.
C49: =IF(ISBLANK([1]Data!$C$12), "",[1]Data!$C$12) -> Соколова Дарья | D49: =IF(ISBLANK([1]Data!$D$12), "",[1]Data!$D$12) -> 2005 | E49: =IF(ISBLANK([1]Data!$E$12), "",[1]Data!$E$12) ->  | F49: =IF(ISBLANK([1]Data!$F$12), "",[1]Data!$F$12) ->  | G49: =IF(ISBLANK([1]Data!$G$12), "",[1]Data!$G$12) -> Кибирева Н.
C50: =IF(ISBLANK([1]Data!$C$13), "",[1]Data!$C$13) -> Грязнова Анна | D50: =IF(ISBLANK([1]Data!$D$13), "",[1]Data!$D$13) -> 2005 | E50: =IF(ISBLANK([1]Data!$E$13), "",[1]Data!$E$13) ->  | F50: =IF(ISBLANK([1]Data!$F$13), "",[1]Data!$F$13) ->  | G50: =IF(ISBLANK([1]Data!$G$13), "",[1]Data!$G$13) -> Ибрагимова А.
C51: =IF(ISBLANK([1]Data!$C$14), "",[1]Data!$C$14) -> Тимошенко Виктория | D51: =IF(ISBLANK([1]Data!$D$14), "",[1]Data!$D$14) -> 2005 | E51: =IF(ISBLANK([1]Data!$E$14), "",[1]Data!$E$14) ->  | F51: =IF(ISBLANK([1]Data!$F$14), "",[1]Data!$F$14) ->  | G51: =IF(ISBLANK([1]Data!$G$14), "",[1]Data!$G$14) -> 
C52: =IF(ISBLANK([1]Data!$C$15), "",[1]Data!$C$15) -> Федорук Яна Чистякова Соня | D52: =IF(ISBLANK([1]Data!$D$15), "",[1]Data!$D$15) -> 2005 | E52: =IF(ISBLANK([1]Data!$E$15), "",[1]Data!$E$15) ->  | F52: =IF(ISBLANK([1]Data!$F$15), "",[1]Data!$F$15) ->  | G52: =IF(ISBLANK([1]Data!$G$15), "",[1]Data!$G$15) -> 
C53: =IF(ISBLANK([1]Data!$C$16), "",[1]Data!$C$16) -> Воробьева Полина | D53: =IF(ISBLANK([1]Data!$D$16), "",[1]Data!$D$16) -> 2005 | E53: =IF(ISBLANK([1]Data!$E$16), "",[1]Data!$E$16) ->  | F53: =IF(ISBLANK([1]Data!$F$16), "",[1]Data!$F$16) ->  | G53: =IF(ISBLANK([1]Data!$G$16), "",[1]Data!$G$16) -> 
B55: Сhief justice | F55: Bravet Quesis Juana Maria FIG CUBA
B57: Chief Secretary | F57: Kalinina Lyubov NK RUSSIA
